bitfinex-derivatives/quotes_ETHF0:USTF0_20250929
["timestamp","ask_amount","ask_price","bid_price","bid_amount"]
[1759180407724,1.68386,4224.8,4224.7,0.6734]
[1759180411832,1.68386,4224.8,4224.7,0.4007]
[1759180412129,1.68386,4224.8,4224.7,0.6891]
[1759180413728,1.68386,4224.8,4224.7,0.4007]
[1759180414729,1.44386,4224.8,4224.7,0.9676]
[1759180414924,1.68386,4224.8,4224.7,0.9676]
[1759180419137,1.44386,4224.8,4224.7,0.9676]
[1759180419337,1.68386,4224.8,4224.7,0.9676]
[1759180419737,1.63186,4224.8,4224.7,0.9676]
[1759180422341,2.10428221,4224.8,4224.7,0.9676]
[1759180424048,0.66575,4224.8,4224.7,1.39336]
[1759180424340,0.94895,4224.8,4224.7,0.9676]
[1759180425140,1.41065,4224.8,4224.7,0.9676]
[1759180425345,1.41066,4224.7,4224.6,0.4324123]
[1759180425642,1.88335016,4224.7,4224.6,0.4324123]
[1759180427444,1.88335016,4224.7,4224.6,0.0025123]
[1759180428345,0.99923,4224.1,4224.0,0.4299]
[1759180428542,2.12342016,4224.1,4224.0,0.4299]
[1759180428940,1.41077,4223.7,4223.6,0.9968]
[1759180429146,1.65077,4223.7,4223.6,0.9968]
[1759180429340,1.65077,4223.7,4223.6,0.99924643]
[1759180431837,1.65077,4223.7,4223.6,0.72074643]
[1759180433538,1.65077,4223.7,4223.6,1.14662643]
[1759180433740,1.65077,4223.7,4223.6,1.42512643]
[1759180435446,1.41077,4223.7,4223.6,1.42512643]
[1759180435647,1.65077,4223.7,4223.6,1.42512643]
[1759180436541,1.65077,4223.7,4223.6,0.99924643]
[1759180440248,1.65077,4223.7,4223.6,0.00244643]
[1759180440643,1.65077,4223.7,4223.6,0.69274643]
[1759180441042,1.65077,4223.7,4223.6,0.00244643]
[1759180441652,42.45077,4223.7,4223.6,0.00244643]
[1759180442947,42.45077,4223.7,4223.6,0.40794643]
[1759180444350,42.45077,4223.7,4223.6,0.00244643]
[1759180444547,42.92354434,4223.7,4223.6,0.00244643]
[1759180444756,1.37958,4222.6,4222.5,1.1236]
[1759180444948,1.61958,4222.6,4222.5,0.9588]
[1759180445146,1.61958,4222.6,4222.5,0.6903]
[1759180445342,1.37961,4222.3,4222.2,0.6903]
[1759180445652,1.19578154,4222.3,4222.2,1.11856319]
[1759180445848,1.19578154,4222.3,4222.2,1.38706319]
[1759180446045,1.62179154,4222.3,4222.2,0.96104319]
[1759180446252,1.62179154,4222.3,4222.2,0.00224319]
[1759180447144,42.42179154,4222.3,4222.2,0.00224319]
[1759180447744,0.42608,4221.6,4221.2,0.42612]
[1759180447949,0.9536,4221.4,4221.3,0.9588]
[1759180448149,1.1936,4221.4,4221.3,0.9588]
[1759180448552,1.1936,4221.4,4221.3,0.6903]
[1759180448753,1.1936,4221.4,4221.3,0.69252538]
[1759180449750,1.1936,4221.4,4221.3,0.40772538]
[1759180449956,1.1936,4221.4,4221.3,0.00222538]
[1759180451854,41.9936,4221.4,4221.3,0.00222538]
[1759180453049,1.37978,4220.6,4220.5,0.6903]
[1759180453245,1.61978,4220.6,4220.5,0.4055]
[1759180453451,0.9536,4220.3,4220.2,1.11652]
[1759180453658,1.1936,4220.3,4220.2,1.11652]
[1759180453851,1.1936,4220.3,4220.2,1.38502]
[1759180454047,1.1936,4220.3,4220.2,1.38718317]
[1759180455050,1.1936,4220.3,4220.2,0.40766317]
[1759180455552,1.1936,4220.3,4220.2,0.00216317]
[1759180456857,0.3987,4219.5,4219.0,0.1591]
[1759180457154,1.1283,4219.4,4219.3,0.2633]
[1759180457458,1.1283,4219.4,4219.0,0.943]
[1759180457459,0.9293,4219.1,4219.0,0.943]
[1759180457653,0.9293,4219.1,4219.0,1.1104]
[1759180457859,0.50371446,4219.1,4219.0,1.11294082]
[1759180458352,1.17131446,4219.1,4219.0,1.11294082]
[1759180459053,0.132,4219.0,4218.0,0.47266251]
[1759180459260,0.2617,4218.1,4218.0,1.17046251]
[1759180459459,1.1693,4218.1,4218.0,1.17046251]
[1759180459654,1.1693,4218.1,4218.0,1.00306251]
[1759180459852,1.1693,4218.1,4218.0,1.14856251]
[1759180460156,3.0342396,4218.1,4218.0,0.47433875]
[1759180460353,1.1693,4218.1,4218.0,0.47433875]
[1759180460756,1.1693,4218.1,4218.0,1.15023875]
[1759180461153,1.1693,4218.1,4218.0,0.47433875]
[1759180462256,1.1693,4218.1,4216.5,0.35888937]
[1759180462257,0.5306,4216.7,4216.0,0.1674]
[1759180462450,0.9293,4216.2,4215.6,0.4126]
[1759180462651,0.9293,4215.7,4215.6,0.6759]
[1759180462851,0.6884,4215.4,4215.3,0.6759]
[1759180463053,0.5306,4214.6,4214.4,0.4126]
[1759180463256,0.5306,4214.6,4214.0,0.1674]
[1759180463257,0.93132731,4214.6,4214.5,0.0018505]
[1759180463562,0.2617,4213.7,4213.6,0.943]
[1759180463760,41.04202731,4214.6,4214.2,0.2633]
[1759180463761,0.24,4214.3,4214.2,0.2633]
[1759180463960,0.24,4214.3,4214.2,0.943]
[1759180464354,0.5017,4214.3,4214.2,0.943]
[1759180464656,40.80202731,4214.6,4214.5,0.1578]
[1759180464861,41.04202731,4214.6,4214.5,1.0784]
[1759180465359,41.06702731,4214.6,4214.5,1.0784]
[1759180465559,41.06702731,4214.6,4214.5,1.5052]
[1759180465762,0.26702731,4214.6,4214.5,1.5052]
[1759180466055,0.26702731,4214.6,4214.5,1.0784]
[1759180466257,0.26702731,4214.6,4214.2,0.3966557]
[1759180466258,0.3997,4214.5,4214.2,0.3966557]
[1759180466455,0.265,4214.3,4214.2,0.9236557]
[1759180466655,0.9241,4214.3,4214.2,0.6591557]
[1759180466866,41.3244,4214.3,4214.2,0.9236557]
[1759180467059,40.8,4214.3,4214.2,1.3504857]
[1759180467654,0.00202731,4214.6,4214.5,1.5052]
[1759180467954,0.26702731,4214.6,4214.5,1.0784]
[1759180468157,0.3997,4214.5,4214.2,0.3966557]
[1759180468365,0.9241,4214.3,4214.2,0.0030557]
[1759180468562,41.9071,4214.3,4214.2,0.0030557]
[1759180469266,0.00202731,4214.6,4214.5,1.1116]
[1759180469558,0.00202731,4214.6,4214.5,1.5052]
[1759180470258,0.00202731,4214.6,4214.5,6.5052]
[1759180471762,0.92612731,4214.6,4214.5,0.3936]
[1759180471956,0.9241,4213.5,4213.4,0.6561]
[1759180472264,0.9241,4213.5,4212.8,0.42696]
[1759180472265,0.42693,4213.2,4212.5,0.1578]
[1759180472566,0.3997,4213.0,4212.5,0.5848]
[1759180472866,0.241,4213.0,4212.9,0.4173369]
[1759180473158,0.1531,4214.0,4212.9,0.42027104]
[1759180473361,0.6077,4213.9,4213.4,0.01166766]
[1759180473561,0.42686,4213.9,4213.6,0.3936]
[1759180473865,0.241,4213.8,4213.5,0.1578]
[1759180474064,0.241,4213.8,4213.6,0.3936]
[1759180474264,0.241,4213.7,4213.6,0.42688]
[1759180474463,0.241,4213.7,4213.6,0.02332622]
[1759180474665,40.8,4213.7,4213.6,0.02332622]
[1759180474860,0.3997,4214.5,4214.1,0.42683]
[1759180475067,0.241,4214.4,4214.1,0.42683]
[1759180475366,40.8,4214.3,4214.2,0.85295957]
[1759180475666,0.00202731,4214.6,4214.5,0.5514]
[1759180476360,0.00202731,4214.6,4214.5,0.58393957]
[1759180476564,0.00202731,4214.6,4214.5,5.58393957]
[1759180478167,0.00202731,4214.6,4214.5,0.58393957]
[1759180478867,0.00202731,4214.6,4214.5,1.11093957]
[1759180479370,0.00202731,4214.6,4214.5,6.11093957]
[1759180479560,0.00202731,4214.6,4214.5,1.11093957]
[1759180481272,0.00202731,4214.6,4214.5,1.12259445]
[1759180481867,0.26702731,4214.6,4214.5,1.12259445]
[1759180482370,0.00202731,4214.6,4214.5,1.13424727]
[1759180483364,0.00202731,4214.6,4214.5,1.14347914]
[1759180483865,40.8,4215.3,4214.5,1.14347914]
[1759180483866,0.69166,4215.8,4215.7,0.9206]
[1759180484070,0.9241,4215.6,4215.5,0.3936]
[1759180484271,0.95108,4215.6,4215.5,0.06507914]
[1759180484466,6.35078,4215.6,4215.5,0.06507914]
[1759180484773,47.15338485,4215.6,4215.5,0.06507914]
[1759180485065,42.15338485,4215.6,4215.5,0.72117914]
[1759180485268,42.39538485,4215.6,4215.5,0.72117914]
[1759180485462,41.75368485,4215.6,4215.5,1.14347914]
[1759180485662,41.99568485,4215.6,4215.5,1.14347914]
[1759180486867,41.75368485,4215.6,4215.5,1.14347914]
[1759180487060,41.73628485,4215.6,4215.5,1.14347914]
[1759180487672,41.04460485,4215.6,4215.5,1.57016914]
[1759180487874,0.24460485,4215.6,4215.5,1.14347914]
[1759180488068,0.00260485,4215.6,4215.5,1.14347914]
[1759180488275,0.69428485,4215.6,4215.5,1.14347914]
[1759180488677,0.00260485,4215.6,4215.5,1.57016914]
[1759180489872,0.00260485,4215.6,4215.5,1.14347914]
[1759180490073,0.42928485,4215.6,4215.5,1.14347914]
[1759180492276,0.89876755,4215.6,4215.5,1.14347914]
[1759180494494,0.47208755,4215.6,4215.5,1.57016914]
[1759180494788,0.89876755,4215.6,4215.5,1.14347914]
[1759180495382,0.47208755,4215.6,4215.5,1.57016914]
[1759180495583,0.00260485,4215.6,4215.5,1.57016914]
[1759180495784,0.47672255,4215.6,4215.5,1.57016914]
[1759180496291,0.00260485,4215.6,4215.5,1.57016914]
[1759180496489,0.42664,4216.0,4215.9,0.9106]
[1759180496887,0.42662,4216.3,4216.2,0.5094]
[1759180497089,0.90062614,4216.3,4216.2,0.9106]
[1759180497490,0.90339912,4216.3,4216.2,0.97801712]
[1759180497793,0.47677912,4216.3,4216.2,1.40463712]
[1759180498393,0.42938298,4216.3,4216.2,0.97801712]
[1759180498787,0.90309118,4216.3,4216.2,0.97801712]
[1759180499093,0.00277298,4216.3,4216.2,1.40463712]
[1759180500488,2.57721212,4217.0,4216.9,0.9106]
[1759180500691,3.05076616,4217.0,4216.9,0.9106]
[1759180500886,1.17510404,4217.0,4216.9,0.9106]
[1759180501087,1.17509404,4217.0,4216.9,0.9106]
[1759180501393,0.42868299,4217.0,4216.9,0.97567914]
[1759180501695,0.70368299,4217.0,4216.9,0.97567914]
[1759180502599,0.97388299,4217.0,4216.9,0.97567914]
[1759180503193,1.44753057,4217.0,4216.9,0.97567914]
[1759180503393,0.97388299,4217.0,4216.9,0.97567914]
[1759180503896,1.96770344,4217.0,4216.9,0.06507914]
[1759180504694,1.36011,4216.3,4216.2,0.65593798]
[1759180504902,1.83363045,4216.3,4216.2,0.65593798]
[1759180505102,2.07463045,4216.3,4216.2,0.00233798]
[1759180505398,42.87463045,4216.3,4216.2,0.00233798]
[1759180505803,42.24533045,4216.3,4216.2,0.91293798]
[1759180506001,42.63363045,4216.3,4216.2,0.91293798]
[1759180506496,42.63363045,4216.3,4216.2,0.00233798]
[1759180507399,47.63363045,4216.3,4216.2,0.00233798]
[1759180509595,42.87463045,4216.3,4216.2,0.65593798]
[1759180510002,42.87463045,4216.3,4216.2,0.00233798]
[1759180510597,42.87463045,4216.3,4216.2,0.65593798]
[1759180510801,41.81872045,4216.3,4216.2,1.33955798]
[1759180511001,42.05972045,4216.3,4216.2,1.33955798]
[1759180511196,42.48633045,4216.3,4216.2,0.91293798]
[1759180511503,0.66758,4216.6,4216.2,0.66053798]
[1759180511811,0.241,4216.6,4216.5,1.50269]
[1759180512003,40.8,4216.9,4216.7,0.42657]
[1759180512200,0.275,4216.8,4216.7,1.33717]
[1759180512508,0.70156,4216.8,4216.7,1.33717]
[1759180512699,0.241,4216.9,4216.8,0.93596]
[1759180512901,0.241,4216.9,4216.8,1.33716]
[1759180513103,0.00214299,4217.0,4216.9,1.33715]
[1759180513404,0.42645,4218.0,4217.6,1.33708]
[1759180513602,0.21523574,4218.5,4217.7,0.9106]
[1759180513603,0.42646,4217.8,4217.7,0.9106]
[1759180513794,0.275,4217.8,4217.7,0.5094]
[1759180513998,0.21523574,4218.5,4217.5,0.1655]
[1759180513999,0.70141,4218.4,4218.3,0.257]
[1759180514298,2.07529539,4218.4,4218.3,0.8945]
[1759180514500,2.0779617,4218.4,4218.3,0.8945]
[1759180514695,0.78886631,4218.4,4218.3,0.8945]
[1759180514901,0.51866631,4218.4,4218.3,0.8945]
[1759180515096,0.24366631,4218.4,4218.3,0.8945]
[1759180515407,0.00266631,4218.4,4218.3,0.8945]
[1759180517002,0.00266631,4218.4,4218.3,5.8945]
[1759180518407,0.42629,4219.5,4219.4,0.9104]
[1759180518804,0.69769,4219.5,4219.4,0.9104]
[1759180519306,0.69984925,4219.5,4219.4,0.91206528]
[1759180520205,0.00215925,4219.5,4219.4,0.91206528]
[1759180523004,0.4093,4220.6,4219.5,0.1544]
[1759180523200,0.9336,4220.6,4220.5,0.9104]
[1759180523400,1.35978,4220.6,4220.5,0.9104]
[1759180524007,0.95347812,4220.6,4220.5,1.0648]
[1759180524310,0.70057812,4220.6,4220.5,1.0648]
[1759180524499,1.34157812,4220.6,4220.5,0.6376]
[1759180525804,0.27439812,4220.6,4220.5,1.0639]
[1759180526007,0.42917812,4220.6,4220.5,1.0639]
[1759180526301,0.69663,4220.1,4220.0,1.0716]
[1759180526512,0.69668,4219.6,4219.5,1.0716]
[1759180526812,0.96668,4219.6,4219.5,1.0716]
[1759180527308,1.33769,4219.5,4219.4,0.00166528]
[1759180528012,1.33769,4219.5,4219.4,0.39046528]
[1759180528197,0.371,4220.5,4220.1,0.5284]
[1759180528512,0.00299812,4220.6,4220.5,1.0694]
[1759180535310,0.00299812,4220.6,4220.5,1.3104]
[1759180535616,0.00299812,4220.6,4220.5,1.0694]
[1759180535802,0.00299812,4220.6,4220.5,1.49559]
[1759180536621,0.00299812,4220.6,4220.5,1.0694]
[1759180536915,0.00299812,4220.6,4220.5,1.49559]
[1759180538417,0.42917812,4220.6,4220.5,1.49559]
[1759180539105,0.00299812,4220.6,4220.5,1.49559]
[1759180539913,0.42917812,4220.6,4220.5,1.49559]
[1759180540614,0.00299812,4220.6,4220.5,1.49559]
[1759180541518,0.42917812,4220.6,4220.5,1.49559]
[1759180542805,0.42623,4220.1,4220.0,1.0694]
[1759180543005,1.0656,4220.0,4219.6,0.3888]
[1759180543309,1.33767,4219.7,4219.6,0.6431]
[1759180543508,0.96669,4219.5,4219.4,0.64476528]
[1759180543714,1.48759,4219.5,4219.4,0.00166528]
[1759180544714,1.33769,4219.5,4219.4,0.00166528]
[1759180544917,1.33769,4219.5,4219.4,0.64476528]
[1759180545318,1.48759,4219.5,4219.4,0.00166528]
[1759180545608,1.33769,4219.5,4219.4,0.39046528]
[1759180545816,0.96669,4219.5,4219.4,0.91886528]
[1759180547011,0.69669,4219.5,4219.4,0.91886528]
[1759180547206,40.8,4219.9,4219.5,0.541]
[1759180547412,0.6414,4220.3,4220.2,0.9172]
[1759180547611,1.38417951,4220.3,4220.2,0.9172]
[1759180547806,1.81038951,4220.3,4220.2,0.6431]
[1759180548013,1.81038951,4220.3,4219.4,0.00166528]
[1759180548014,0.5404,4219.5,4219.4,0.00166528]
[1759180548317,1.33769,4219.5,4219.4,0.00166528]
[1759180548707,1.33769,4219.5,4219.4,0.64476528]
[1759180550404,1.33769,4219.5,4219.4,0.25596528]
[1759180550604,0.9114,4219.5,4219.4,0.00166528]
[1759180550810,0.2704,4219.5,4219.4,0.91886528]
[1759180551006,0.2704,4219.9,4219.8,0.5284]
[1759180551212,0.2704,4219.9,4219.8,0.9172]
[1759180551708,0.2704,4219.9,4219.8,0.6431]
[1759180551709,1.33765,4219.9,4219.8,0.6431]
[1759180551908,0.42629,4219.5,4219.4,0.00166528]
[1759180552116,0.96669,4219.5,4219.4,1.34516528]
[1759180552616,0.371,4219.9,4219.6,0.42628]
[1759180552818,0.2704,4220.0,4219.9,0.9172]
[1759180553708,0.69664,4220.0,4219.9,1.34345]
[1759180554309,0.42623,4220.1,4220.0,1.48684]
[1759180555023,0.2601,4219.9,4219.8,0.6499]
[1759180555222,0.2601,4219.9,4219.8,0.9103]
[1759180555223,0.68635,4219.9,4219.8,0.9103]
[1759180555407,0.42624,4220.0,4219.8,1.33656]
[1759180555614,0.42624,4220.0,4219.9,1.33655]
[1759180555924,0.4262,4220.4,4220.3,0.2604]
[1759180556212,0.4262,4220.4,4220.3,1.33651]
[1759180556411,0.00299812,4220.6,4220.3,1.33651]
[1759180556412,0.00299812,4220.6,4220.5,0.57649]
[1759180556617,0.42917812,4220.6,4220.5,1.0606]
[1759180556823,0.42917812,4220.6,4220.5,1.48679]
[1759180559216,0.00299812,4220.6,4220.5,1.48679]
[1759180559425,0.42917812,4220.6,4220.5,1.48679]
[1759180561817,0.00299812,4220.6,4220.5,1.48679]
[1759180563221,0.42917812,4220.6,4220.5,1.0606]
[1759180563725,0.42917812,4220.6,4220.5,1.48679]
[1759180564022,0.00299812,4220.6,4220.5,1.48679]
[1759180565717,0.42607,4221.7,4221.6,1.33637]
[1759180565920,0.42607,4221.7,4221.6,0.9103]
[1759180565921,0.68617,4221.7,4221.6,0.9103]
[1759180566116,0.68617,4221.7,4221.6,1.33638]
[1759180566421,41.169,4222.1,4221.7,1.33636]
[1759180566422,0.42606,4221.8,4221.7,1.33636]
[1759180566723,0.42825226,4221.8,4221.7,1.33636]
[1759180567116,0.42825226,4221.8,4221.7,0.9103]
[1759180567317,0.68835226,4221.8,4221.7,0.9103]
[1759180579737,0.00219226,4221.8,4221.7,0.9103]
[1759180580032,0.4259,4223.4,4222.8,1.31256]
[1759180580232,0.42591,4223.3,4222.8,1.31256]
[1759180580537,0.3704,4223.8,4222.8,1.31256]
[1759180580831,0.02474451,4222.9,4222.8,1.31456153]
[1759180583322,0.42587,4223.7,4223.5,0.42588]
[1759180583530,0.2634,4223.8,4223.7,0.8866]
[1759180583835,1.05963,4224.1,4224.0,0.6813]
[1759180584031,1.05963,4224.1,4224.0,1.044]
[1759180584425,1.06223566,4224.1,4224.0,1.044]
[1759180584836,0.00260566,4224.1,4224.0,1.044]
[1759180585231,0.00260566,4224.1,4224.0,1.285]
[1759180587346,0.00260566,4224.1,4224.0,1.044]
[1759180587647,0.00260566,4224.1,4224.0,1.285]
[1759180591147,0.00260566,4224.1,4224.0,0.8866]
[1759180591148,0.87830566,4224.1,4224.0,0.8866]
[1759180591354,1.30157,4223.7,4223.6,0.8532]
[1759180592247,1.04522,4223.2,4223.1,0.3594]
[1759180592454,1.30162,4223.2,4223.1,0.3594]
[1759180592655,1.30162,4223.2,4223.1,0.6129]
[1759180593245,0.42595,4222.9,4222.8,0.00200153]
[1759180593445,0.2564,4222.9,4222.8,0.49580153]
[1759180593651,0.78722,4223.3,4222.8,0.49580153]
[1759180593652,0.5144,4223.3,4223.2,0.91972]
[1759180593853,0.2564,4223.3,4223.2,1.27912]
[1759180594048,0.8757,4223.3,4223.2,0.8532]
[1759180594748,1.06466,4223.8,4223.0,0.58403]
[1759180594749,0.8757,4223.1,4223.0,0.6129]
[1759180595550,0.8757,4223.1,4222.8,0.00200153]
[1759180595749,0.8757,4222.9,4222.8,0.00200153]
[1759180598153,0.8757,4222.9,4222.8,0.61490153]
[1759180600150,0.8757,4222.9,4222.8,0.85520153]
[1759180600346,0.42594,4223.0,4222.9,0.3594]
[1759180600557,0.68234,4223.0,4222.9,0.8532]
[1759180600959,0.6177,4222.9,4222.8,0.00200153]
[1759180601256,0.8757,4222.9,4222.8,0.00200153]
[1759180601960,5.8757,4222.9,4222.8,0.00200153]
[1759180603254,6.30165,4222.9,4222.8,0.00200153]
[1759180604052,0.42602,4222.2,4222.1,0.3594]
[1759180604247,1.30175,4221.9,4221.8,0.8532]
[1759180604454,0.8757,4221.9,4221.8,1.27926]
[1759180604851,0.5144,4221.9,4221.8,1.27926]
[1759180605051,0.5144,4221.9,4221.8,1.28097862]
[1759180605456,0.94045,4221.9,4221.8,1.28097862]
[1759180605652,0.94045,4221.9,4221.8,0.42777862]
[1759180605864,1.30175,4221.9,4221.8,0.00171862]
[1759180608059,6.30175,4221.9,4221.8,0.00171862]
[1759180608550,47.10175,4221.9,4221.8,0.00171862]
[1759180609360,42.10175,4221.9,4221.8,0.00171862]
[1759180609854,42.10175,4221.9,4221.1,0.2535]
[1759180609855,0.42613,4221.2,4221.1,0.2535]
[1759180610055,0.94053,4221.2,4221.1,0.8532]
[1759180610450,0.5144,4221.2,4221.1,0.8532]
[1759180610855,0.5144,4221.2,4221.1,0.85535579]
[1759180612157,0.94052,4221.2,4221.1,0.85535579]
[1759180612553,0.5144,4221.2,4221.1,1.28148579]
[1759180612756,0.2564,4221.6,4221.5,1.43738]
[1759180613556,0.68248,4221.6,4221.5,1.0113]
[1759180614262,41.041,4221.9,4221.1,0.38485579]
[1759180614263,0.2396,4221.2,4221.1,0.38485579]
[1759180614458,0.66568,4221.6,4221.5,0.636]
[1759180614664,0.90538,4221.6,4221.5,1.0187]
[1759180614966,1.28218,4221.6,4221.5,0.3827]
[1759180615362,1.28218,4221.6,4221.5,0.53]
[1759180615569,0.8561,4221.2,4221.1,0.24045579]
[1759180615768,1.28222,4221.2,4221.1,0.24045579]
[1759180616258,1.28222,4221.2,4221.1,1.04927579]
[1759180616461,0.4793,4221.2,4221.1,1.29967579]
[1759180616766,41.041,4221.9,4221.3,1.29749]
[1759180616767,0.42608,4221.4,4221.3,1.29749]
[1759180617264,0.3768,4221.7,4221.3,1.29749]
[1759180617468,0.42608,4221.5,4221.4,1.29748]
[1759180617669,0.42608,4221.5,4221.4,0.8714]
[1759180617860,0.66568,4221.5,4221.4,0.8714]
[1759180618164,0.90538,4221.5,4221.4,0.8714]
[1759180618366,1.28221,4221.2,4221.1,0.00215579]
[1759180619156,0.6658,4220.3,4220.2,0.621]
[1759180619368,0.8561,4220.3,4220.2,1.04721]
[1759180619563,0.8561,4220.3,4220.2,1.29761]
[1759180619564,0.9055,4220.3,4220.2,1.29761]
[1759180620263,0.9055,4220.3,4220.2,1.29955529]
[1759180620264,0.90783863,4220.3,4220.2,1.29955529]
[1759180620665,0.00233863,4220.3,4220.2,1.29955529]
[1759180620967,1.28466863,4220.3,4220.2,0.00194529]
[1759180621362,6.52666863,4220.3,4220.2,0.00194529]
[1759180622768,0.85843863,4220.3,4220.2,0.87334529]
[1759180622969,0.85843863,4220.3,4220.2,0.00194529]
[1759180623968,0.48163863,4220.3,4220.2,0.87334529]
[1759180624181,0.24193863,4220.3,4220.2,0.87334529]
[1759180624568,0.00233863,4220.3,4220.2,0.87334529]
[1759180625569,1.28224,4221.2,4221.1,0.2383]
[1759180625773,1.52424,4221.2,4221.1,0.3827]
[1759180626070,0.66575,4221.2,4221.1,0.4887]
[1759180626269,0.2396,4220.6,4220.5,0.3856]
[1759180626476,0.2396,4220.6,4220.5,1.44492]
[1759180626674,0.24235643,4220.6,4220.5,1.44492]
[1759180626863,0.00275643,4220.6,4220.5,1.44492]
[1759180629173,0.24235643,4220.6,4220.5,1.44492]
[1759180629476,0.00275643,4220.6,4220.5,1.44492]
[1759180630970,0.42896643,4220.6,4220.5,1.0187]
[1759180631172,0.00275643,4220.6,4220.5,1.44492]
[1759180632571,0.42896643,4220.6,4220.5,1.44492]
[1759180633271,0.00275643,4220.6,4220.5,1.44492]
[1759180635280,0.42615,4221.3,4221.2,1.29174]
[1759180635481,0.67853,4221.5,4221.4,1.29173]
[1759180635676,0.42613,4221.5,4221.4,1.29173]
[1759180636177,0.42847037,4221.5,4221.4,1.29173]
[1759180636376,0.00234037,4221.5,4221.4,1.29173]
[1759180639477,0.67843,4222.5,4222.4,1.29163]
[1759180639678,0.2524,4222.5,4222.4,1.29163]
[1759180639887,0.2524,4222.5,4222.4,0.8656]
[1759180640283,0.25491703,4222.5,4222.4,0.8656]
[1759180641584,0.68093703,4222.5,4222.4,0.8656]
[1759180642085,0.68093703,4222.5,4222.4,1.29163]
[1759180643076,0.25491703,4222.5,4222.4,1.29163]
[1759180643277,0.68093703,4222.5,4222.4,0.8656]
[1759180643478,0.68093703,4222.5,4222.4,1.29163]
[1759180643780,0.25491703,4222.5,4222.4,1.29163]
[1759180644487,0.00251703,4222.5,4222.4,1.29163]
[1759180644883,0.25171703,4222.5,4222.4,1.29163]
[1759180645683,0.67773703,4222.5,4222.4,1.29163]
[1759180646479,0.00251703,4222.5,4222.4,1.29163]
[1759180646883,0.42853703,4222.5,4222.4,1.29163]
[1759180647184,0.67773703,4222.5,4222.4,1.29163]
[1759180647889,0.67773703,4222.5,4222.4,0.8656]
[1759180648085,0.25171703,4222.5,4222.4,1.29163]
[1759180648284,0.67773703,4222.5,4222.4,1.29163]
[1759180649679,0.00251703,4222.5,4222.4,1.29163]
[1759180649879,0.42853703,4222.5,4222.4,1.29163]
[1759180650480,0.67773703,4222.5,4222.4,1.29163]
[1759180651288,0.67773703,4222.5,4222.4,0.8656]
[1759180651697,0.67773703,4222.5,4222.4,1.29163]
[1759180654795,1.30363703,4222.5,4222.4,0.8656]
[1759180655001,1.30363703,4222.5,4222.4,1.05023]
[1759180655489,1.30363703,4222.5,4222.4,1.30503]
[1759180655891,0.25171703,4222.5,4222.4,1.30503]
[1759180656399,0.42853703,4222.5,4222.4,1.30503]
[1759180656897,0.00251703,4222.5,4222.4,1.30503]
[1759180657592,0.6751,4223.7,4223.6,0.8731]
[1759180657896,1.301,4223.7,4223.6,0.8731]
[1759180658696,1.30320518,4223.7,4223.6,0.87525829]
[1759180662296,0.93250518,4223.7,4223.6,0.87525829]
[1759180663005,0.67730518,4223.7,4223.6,0.87525829]
[1759180664902,0.91830518,4223.7,4223.6,0.87525829]
[1759180665201,0.66910518,4223.7,4223.6,0.87525829]
[1759180665598,0.91830518,4223.7,4223.6,0.87525829]
[1759180666705,0.91830518,4223.7,4223.6,1.30116829]
[1759180667204,0.91830518,4223.7,4223.6,0.87525829]
[1759180667205,0.42810518,4223.7,4223.6,0.87525829]
[1759180667407,0.67730518,4223.7,4223.6,0.87525829]
[1759180668405,0.67730518,4223.7,4223.6,1.30116829]
[1759180668597,0.42810518,4223.7,4223.6,1.30116829]
[1759180669609,0.00220518,4223.7,4223.6,1.30116829]
[1759180669801,0.42810518,4223.7,4223.6,1.30116829]
[1759180670105,0.00220518,4223.7,4223.6,1.30116829]
[1759180671402,0.00220518,4223.7,4223.6,2.13710014]
[1759180675313,0.00220518,4223.7,4223.6,1.30116829]
[1759180677313,1.25910518,4223.7,4223.6,0.00215829]
[1759180678717,6.25910518,4223.7,4223.6,0.00215829]
[1759180680027,1.50010518,4223.7,4223.6,0.35735829]
[1759180680313,1.50010518,4223.7,4223.6,0.00215829]
[1759180681216,0.4763,4222.7,4222.4,0.3552]
[1759180681406,0.4763,4222.5,4222.4,0.3552]
[1759180681716,0.831,4222.5,4222.4,0.8299]
[1759180682017,0.2441,4222.9,4222.8,0.8299]
[1759180682214,0.2441,4222.9,4222.8,0.83234749]
[1759180682516,0.831,4222.9,4222.8,0.83234749]
[1759180683421,0.831,4222.9,4222.8,0.60144749]
[1759180683619,0.831,4222.9,4222.8,0.35764749]
[1759180684123,0.831,4222.9,4222.8,0.00244749]
[1759180684323,5.831,4222.9,4222.8,0.00244749]
[1759180685420,0.4763,4222.1,4221.8,0.83593185]
[1759180685617,0.831,4221.9,4221.8,0.3552]
[1759180685818,1.25708,4221.9,4221.8,0.599]
[1759180686022,1.25711,4221.6,4221.5,0.3552]
[1759180686316,1.25711,4221.6,4221.5,0.9708]
[1759180686520,0.2441,4221.8,4221.7,1.256]
[1759180689621,0.42606,4222.1,4222.0,1.39687]
[1759180690011,0.67016,4222.1,4222.0,1.39687]
[1759180693023,0.3547,4222.4,4222.0,1.39687]
[1759180693233,0.2441,4222.7,4222.6,1.25591]
[1759180693526,0.67009,4222.9,4222.8,0.90069]
[1759180693717,0.67009,4222.9,4222.8,1.25589]
[1759180694925,0.3411,4223.3,4222.8,0.4747]
[1759180695128,0.3411,4223.3,4222.5,1.20595]
[1759180695129,0.42596,4223.1,4223.0,1.0109]
[1759180695329,0.66366,4223.1,4223.0,1.0109]
[1759180696920,0.66366,4223.1,4223.0,1.43687]
[1759180697231,0.42595,4223.2,4223.1,1.28735]
[1759180699231,0.66365,4223.2,4223.1,0.8614]
[1759180699926,0.66365,4223.2,4222.0,0.6352]
[1759180699927,0.66376,4222.1,4222.0,0.6352]
[1759180700226,0.42611,4221.7,4221.6,0.4943]
[1759180700429,0.91201,4221.7,4221.6,0.4943]
[1759180700633,1.25311,4221.7,4221.6,0.8614]
[1759180703636,0.91201,4221.7,4221.6,0.8614]
[1759180704433,0.42611,4221.7,4221.6,0.8614]
[1759180704730,0.3411,4222.0,4221.5,0.56894685]